fUST/lending_fUST_20240811
["ID","MTS","AMOUNT","RATE_DAILY","PERIOD"]
[334618867,1723351841612,-500.0,0.00020821,3]
[334618868,1723351841621,-500.0,0.00020821,3]
[334618869,1723351841630,-500.0,0.00020821,3]
[334618870,1723351841640,-500.0,0.00020821,3]
[334618871,1723351841650,-500.0,0.00020821,3]
[334618872,1723351841659,-554.9899808,0.00020821,3]
[334618873,1723351841669,-500.0,0.00020821,3]
[334618874,1723351841678,-500.0,0.00020821,3]
[334618875,1723351841687,-511.8375352,0.00020821,3]
[334618876,1723351841696,-500.0,0.00020821,3]
[334618877,1723351841705,-509.68251179,0.00020821,3]
[334618878,1723351841714,-500.0,0.00020821,3]
[334618879,1723351841723,-1842.55,0.00020821,3]
[334618880,1723351841734,-516.72,0.00020821,3]
[334618881,1723351841743,-500.0,0.00020821,3]
[334618882,1723351841752,-500.0,0.00020821,3]
[334618883,1723351841761,-500.0,0.00020821,3]
[334618884,1723351841770,-500.0,0.00020821,3]
[334618885,1723351841780,-500.0,0.00020821,3]
[334618886,1723351841789,-500.0,0.00020821,3]
[334618887,1723351841799,-755.76,0.00020821,3]
[334618888,1723351841808,-566.83764694,0.00020821,3]
[334618889,1723351841817,-500.0,0.00020821,3]
[334618890,1723351841827,-913.27,0.00020821,3]
[334618891,1723351841836,-500.0,0.00020821,3]
[334618892,1723351841845,-500.0,0.00020821,3]
[334618893,1723351841854,-985.55,0.00020821,3]
[334618894,1723351841865,-500.0,0.00020821,3]
[334618895,1723351841875,-500.0,0.00020821,3]
[334618896,1723351841885,-500.0,0.00020821,3]
[334618897,1723351841894,-500.0,0.00020821,3]
[334618898,1723351841904,-500.0,0.00020821,3]
[334618899,1723351841914,-1632.41,0.00020821,3]
[334618900,1723351841924,-500.0,0.00020821,3]
[334618901,1723351841937,-500.0,0.00020821,3]
[334618902,1723351841946,-462.76067,0.00020821,2]
[334618903,1723351841955,-462.76067,0.00020821,2]
[334618904,1723351841966,-592.38,0.00020821,3]
[334618905,1723351841976,-500.0,0.00020821,3]
[334618906,1723351841985,-462.76067,0.00020821,2]
[334618907,1723351841994,-462.76067,0.00020821,2]
[334618908,1723351842005,-500.0,0.00020821,3]
[334618909,1723351842014,-500.0,0.00020821,3]
[334618910,1723351842025,-602.71,0.00020821,3]
[334618911,1723351842038,-500.0,0.00020821,3]
[334618912,1723351842049,-500.0,0.00020821,3]
[334618913,1723351842060,-500.0,0.00020821,2]
[334618914,1723351842070,-663.08,0.00020821,3]
[334618915,1723351842080,-500.0,0.00020821,3]
[334618916,1723351842090,-500.0,0.00020821,3]
[334618917,1723351842100,-500.0,0.00020821,3]
[334618918,1723351842109,-500.0,0.00020821,3]
[334618919,1723351842118,-168.80615838,0.00020821,3]
[334618920,1723351842128,-512.89556235,0.00020821,3]
[334618921,1723351842137,-712.22,0.00020821,3]
[334618922,1723351842148,-500.0,0.00020821,3]
[334618923,1723351842157,-1307.77,0.00020821,3]
[334618924,1723351842167,-500.0,0.00020821,3]
[334618925,1723351842177,-942.97,0.00020821,3]
[334618926,1723351842188,-592.84,0.00020821,3]
[334618927,1723351842198,-756.66,0.00020821,3]
[334618928,1723351842207,-500.0,0.00020821,3]
[334618929,1723351842218,-611.55,0.00020821,3]
[334618930,1723351842229,-500.0,0.00020821,3]
[334618931,1723351842240,-786.63,0.00020821,3]
[334618932,1723351842252,-500.0,0.00020821,3]
[334618933,1723351842263,-700.12,0.00020821,3]
[334618934,1723351842273,-500.0,0.00020821,3]
[334618935,1723351842282,-466.11567331,0.00020821,3]
[334618936,1723351842291,-500.0,0.00020821,3]
[334618937,1723351842300,-964.79,0.00020821,3]
[334618938,1723351842309,-500.0,0.00020821,3]
[334618939,1723351842319,-727.74,0.00020821,3]
[334618940,1723351842328,-1396.1,0.00020821,3]
[334618941,1723351842339,-500.0,0.00020821,3]
[334618942,1723351842350,-500.0,0.00020821,3]
[334618943,1723351842360,-1128.48,0.00020821,3]
[334618944,1723351842370,-500.0,0.00020821,3]
[334618945,1723351842379,-500.0,0.00020821,3]
[334618946,1723351842389,-513.42660681,0.00020821,3]
[334618947,1723351842399,-500.0,0.00020821,3]
[334618948,1723351842411,-509.40190097,0.00020821,3]
[334618949,1723351842420,-500.0,0.00020821,3]
[334618950,1723351842431,-557.89,0.00020821,3]
[334618951,1723351842440,-661.32,0.00020821,3]
[334618952,1723351842451,-505.26,0.00020821,3]
[334618953,1723351842462,-511.2268226,0.00020821,3]
[334618954,1723351842472,-500.0,0.00020821,3]
[334618955,1723351842484,-500.0,0.00020821,3]
[334618956,1723351842492,-884.38,0.00020821,3]
[334618957,1723351842503,-1349.87,0.00020821,3]
[334618958,1723351842513,-500.0,0.00020821,3]
[334618959,1723351842522,-500.0,0.00020821,3]
[334618960,1723351842533,-500.0,0.00020821,3]
[334618961,1723351842542,-500.0,0.00020821,3]
[334618962,1723351842553,-1138.06,0.00020821,3]
[334618963,1723351842562,-500.0,0.00020821,3]
[334618964,1723351842572,-500.0,0.00020821,3]
[334618965,1723351842582,-510.63316884,0.00020821,3]
[334618966,1723351842593,-1311.55,0.00020821,3]
[334618967,1723351842602,-500.0,0.00020821,3]
[334618968,1723351842611,-500.0,0.00020821,3]
[334618969,1723351842621,-500.0,0.00020821,3]
[334618970,1723351842631,-512.44823165,0.00020821,3]
[334618971,1723351842640,-514.09048529,0.00020821,3]
[334618972,1723351842650,-500.0,0.00020821,3]
[334618974,1723351842659,-500.0,0.00020821,3]
[334618976,1723351842668,-431.46194739,0.00020821,3]
[334618977,1723351842678,-500.0,0.00020821,3]
[334618978,1723351842687,-1362.06,0.00020821,3]
[334618979,1723351842697,-500.0,0.00020821,3]
[334618980,1723351842706,-500.0,0.00020821,3]
[334618981,1723351842716,-500.0,0.00020821,3]
[334618982,1723351842728,-500.0,0.00020821,3]
[334618983,1723351842740,-510.56967766,0.00020821,3]
[334618984,1723351842749,-541.41405583,0.00020821,3]
[334618985,1723351842759,-500.0,0.00020821,3]
[334618987,1723351842768,-170.331576,0.00020821,2]
[334618988,1723351842778,-170.331576,0.00020821,2]
[334618990,1723351842787,-500.0,0.00020821,3]
[334618991,1723351842797,-500.0,0.00020821,3]
[334618993,1723351842806,-170.331576,0.00020821,2]
[334618995,1723351842815,-500.0,0.00020821,3]
[334618997,1723351842824,-170.331576,0.00020821,2]
[334618998,1723351842834,-500.0,0.00020821,3]
[334619000,1723351842843,-500.0,0.00020821,3]
[334619003,1723351842852,-500.0,0.00020821,3]
[334619005,1723351842861,-500.0,0.00020821,3]
[334619008,1723351842871,-506.80937622,0.00020821,3]
[334619011,1723351842880,-500.0,0.00020821,3]
[334619013,1723351842889,-500.0,0.00020821,3]
[334619016,1723351842898,-500.0,0.00020821,3]
[334619020,1723351842908,-151.0,0.00020821,2]
[334619023,1723351842917,-151.0,0.00020821,2]
[334619026,1723351842926,-514.87375413,0.00020821,3]
[334619029,1723351842940,-500.0,0.00020821,3]
[334619032,1723351842949,-500.0,0.00020821,3]
[334619034,1723351842958,-862.17,0.00020821,3]
[334619037,1723351842968,-500.0,0.00020821,3]
[334619039,1723351842980,-818.53,0.00020821,3]
[334619041,1723351842989,-500.0,0.00020821,3]
[334619043,1723351842999,-500.0,0.00020821,3]
[334619045,1723351843009,-500.0,0.00020821,3]
[334619047,1723351843019,-500.0,0.00020821,3]
[334619049,1723351843029,-500.0,0.00020821,3]
[334619051,1723351843039,-500.0,0.00020821,3]
[334619053,1723351843049,-500.0,0.00020821,3]
[334619055,1723351843058,-1721.14,0.00020821,3]
[334619057,1723351843067,-500.0,0.00020821,3]
[334619059,1723351843078,-728.08,0.00020821,3]
[334619061,1723351843088,-541.86935323,0.00020821,3]
[334619064,1723351843098,-581.13,0.00020821,3]
[334619066,1723351843107,-1208.73,0.00020821,3]
[334619068,1723351843117,-500.0,0.00020821,3]
[334619070,1723351843128,-646.2,0.00020821,3]
[334619072,1723351843140,-338.37442008,0.00020821,3]
[334619074,1723351843151,-500.0,0.00020821,3]
[334619075,1723351843160,-500.0,0.00020821,3]
[334619077,1723351843170,-500.0,0.00020821,3]
[334619079,1723351843180,-350.0,0.00020821,2]
[334619081,1723351843189,-350.0,0.00020821,2]
[334619083,1723351843199,-350.0,0.00020821,2]
[334619085,1723351843209,-500.0,0.00020821,3]
[334619087,1723351843219,-350.0,0.00020821,2]
[334619088,1723351843231,-1922.81,0.00020821,3]
[334619089,1723351843240,-500.0,0.00020821,3]
[334619090,1723351843250,-693.34,0.00020821,3]
[334619091,1723351843260,-500.0,0.00020821,3]
[334619092,1723351843269,-500.0,0.00020821,3]
[334619093,1723351843279,-500.0,0.00020821,3]
[334619094,1723351843289,-2157.06,0.00020821,3]
[334619095,1723351843299,-500.0,0.00020821,3]
[334619096,1723351843309,-867.66,0.00020821,3]
[334619097,1723351843319,-585.785246,0.00020821,2]
[334619098,1723351843329,-585.785246,0.00020821,2]
[334619099,1723351843341,-1817.84,0.00020821,3]
[334619100,1723351843353,-500.0,0.00020821,3]
[334619101,1723351843364,-585.785246,0.00020821,2]
[334619102,1723351843374,-585.785246,0.00020821,2]
[334619103,1723351843384,-513.7,0.00020821,3]
[334619104,1723351843394,-2205.58,0.00020821,3]
[334619105,1723351843404,-500.0,0.00020821,3]
[334619106,1723351843414,-510.05138703,0.00020821,3]
[334619107,1723351843423,-1744.85,0.00020821,3]
[334619108,1723351843434,-3126.74,0.00020821,3]
[334619109,1723351843445,-500.0,0.00020821,3]
[334619110,1723351843456,-500.0,0.00020821,3]
[334619111,1723351843465,-500.0,0.00020821,3]
[334619112,1723351843474,-500.0,0.00020821,3]
[334619113,1723351843496,-500.0,0.00020821,3]
[334619114,1723351843507,-1856.09,0.00020821,3]
[334619115,1723351843518,-151.0,0.00020821,2]
[334619116,1723351843528,-151.0,0.00020821,2]
[334619117,1723351843539,-151.0,0.00020821,2]
[334619118,1723351843551,-151.0,0.00020821,2]
[334619119,1723351843561,-500.0,0.00020821,3]
[334619120,1723351843571,-11375.93,0.00020821,3]
[334619121,1723351843581,-500.0,0.00020821,3]
[334619122,1723351843592,-500.0,0.00020821,3]
[334619123,1723351843601,-500.0,0.00020821,3]
[334619124,1723351843611,-1130.18,0.00020821,3]
[334619125,1723351843622,-500.0,0.00020821,3]
[334619126,1723351843632,-500.0,0.00020821,3]
[334619127,1723351843642,-3101.08,0.00020821,3]
[334619128,1723351843652,-1990.98,0.00020821,3]
[334619129,1723351843661,-500.0,0.00020821,3]
[334619130,1723351843670,-3551.49,0.00020821,3]
[334619131,1723351843679,-500.0,0.00020821,3]
[334619132,1723351843689,-500.0,0.00020821,3]
[334619133,1723351843698,-500.0,0.00020821,3]
[334619134,1723351843707,-500.0,0.00020821,3]
[334619135,1723351843716,-500.0,0.00020821,3]
[334619136,1723351843730,-334.052869,0.00020821,2]
[334619137,1723351843739,-334.052869,0.00020821,2]
[334619138,1723351843749,-500.0,0.00020821,3]
[334619139,1723351843758,-826.0,0.00020821,3]
[334619140,1723351843768,-334.052869,0.00020821,2]
[334619141,1723351843777,-2152.49,0.00020821,3]
[334619142,1723351843786,-334.052869,0.00020821,2]
[334619143,1723351843796,-500.0,0.00020821,3]
[334619144,1723351843805,-600.14,0.00020821,3]
[334619145,1723351843814,-2149.97,0.00020821,3]
[334619146,1723351843824,-578.61,0.00020821,3]
[334619147,1723351843833,-248.23873552,0.00020821,3]
[334619148,1723351843842,-500.0,0.00020821,3]
[334619149,1723351843852,-500.0,0.00020821,3]
[334619150,1723351843861,-500.0,0.00020821,3]
[334619151,1723351843872,-743.17,0.00020821,3]
[334619153,1723351843882,-500.0,0.00020821,3]
[334619155,1723351843892,-500.0,0.00020821,3]
[334619157,1723351843902,-500.0,0.00020821,3]
[334619159,1723351843912,-535.4,0.00020821,3]
[334619161,1723351843921,-2045.01,0.00020821,3]
[334619163,1723351843932,-500.0,0.00020821,3]
[334619164,1723351843943,-688.94,0.00020821,3]
[334619166,1723351843952,-500.0,0.00020821,3]
[334619167,1723351843962,-500.0,0.00020821,3]
[334619168,1723351843971,-574.79,0.00020821,3]
[334619169,1723351843983,-500.0,0.00020821,3]
[334619170,1723351843992,-500.0,0.00020821,3]
[334619171,1723351844002,-584.81,0.00020821,3]
[334619172,1723351844014,-1113.43,0.00020821,3]
[334619173,1723351844023,-500.0,0.00020821,3]
[334619174,1723351844033,-428.904873,0.00020821,2]
[334619175,1723351844042,-428.904873,0.00020821,2]
[334619176,1723351844051,-500.0,0.00020821,3]
[334619177,1723351844061,-517.58,0.00020821,3]
[334619178,1723351844070,-428.904873,0.00020821,2]
[334619179,1723351844079,-428.904873,0.00020821,2]
[334619180,1723351844089,-963.78,0.00020821,3]
[334619181,1723351844099,-198.209839,0.00020821,2]
[334619182,1723351844108,-1432.01,0.00020821,3]
[334619183,1723351844118,-198.209839,0.00020821,2]
[334619184,1723351844127,-500.0,0.00020821,3]
[334619185,1723351844136,-500.0,0.00020821,3]
[334619186,1723351844146,-151.0,0.00020821,2]
[334619187,1723351844156,-2885.15,0.00020821,3]
[334619188,1723351844166,-151.0,0.00020821,2]
[334619189,1723351844175,-198.209839,0.00020821,2]
[334619190,1723351844185,-500.0,0.00020821,3]
[334619191,1723351844195,-198.209839,0.00020821,2]
[334619192,1723351844204,-909.23,0.00020821,3]
[334619193,1723351844214,-151.0,0.00020821,2]
[334619194,1723351844224,-151.0,0.00020821,2]
[334619195,1723351844233,-500.0,0.00020821,3]
[334619196,1723351844243,-1537.78,0.00020821,3]
[334619197,1723351844252,-900.93,0.00020821,3]
[334619198,1723351844261,-500.0,0.00020821,3]
[334619199,1723351844271,-500.0,0.00020821,3]
[334619200,1723351844280,-1539.47,0.00020821,3]
[334619201,1723351844291,-500.0,0.00020821,3]
[334619202,1723351844300,-13411.71,0.00020821,3]
[334619203,1723351844310,-3337.32,0.00020821,3]
[334619204,1723351844319,-151.0,0.00020821,2]
[334619205,1723351844328,-151.0,0.00020821,2]
[334619206,1723351844337,-500.0,0.00020821,3]
[334619207,1723351844347,-500.0,0.00020821,3]
[334619208,1723351844356,-1344.43,0.00020821,3]
[334619209,1723351844366,-747.59,0.00020821,3]
[334619210,1723351844375,-500.0,0.00020821,3]
[334619211,1723351844386,-151.0,0.00020821,2]
[334619212,1723351844396,-151.0,0.00020821,2]
[334619213,1723351844406,-2335.06,0.00020821,3]
[334619214,1723351844415,-500.0,0.00020821,3]
[334619215,1723351844425,-1196.63,0.00020821,3]
[334619216,1723351844435,-151.0,0.00020821,2]
[334619217,1723351844444,-151.0,0.00020821,2]
[334619218,1723351844454,-2355.6,0.00020821,3]
[334619219,1723351844463,-8026.04,0.00020821,3]
[334619220,1723351844473,-1081.06,0.00020821,3]
[334619221,1723351844483,-500.0,0.00020821,3]
[334619222,1723351844493,-500.0,0.00020821,3]
[334619223,1723351844503,-234.46521245,0.00020821,3]
[334619224,1723351844513,-1660.82,0.00020821,3]
[334619225,1723351844522,-509.26830984,0.00020821,3]
[334619226,1723351844532,-500.0,0.00020821,3]
[334619227,1723351844542,-500.0,0.00020821,3]
[334619228,1723351844551,-932.75,0.00020821,3]
[334619229,1723351844560,-5497.53,0.00020821,3]
[334619230,1723351844569,-500.0,0.00020821,3]
[334619231,1723351844579,-500.0,0.00020821,3]
[334619232,1723351844588,-1230.51,0.00020821,3]
[334619233,1723351844598,-500.0,0.00020821,3]
[334619234,1723351844607,-1945.38,0.00020821,3]
[334619235,1723351844617,-594.34238962,0.00020821,3]
[334619236,1723351844627,-500.0,0.00020821,3]
[334619237,1723351844637,-500.0,0.00020821,3]
[334619238,1723351844646,-604.24,0.00020821,3]
[334619239,1723351844655,-3366.44,0.00020821,3]
[334619240,1723351844665,-1804.54,0.00020821,3]
[334619241,1723351844675,-500.0,0.00020821,3]
[334619242,1723351844684,-500.0,0.00020821,3]
[334619243,1723351844693,-6283.33,0.00020821,3]
[334619244,1723351844703,-624.72,0.00020821,3]
[334619245,1723351844713,-500.0,0.00020821,3]
[334619246,1723351844723,-1855.54,0.00020821,3]
[334619247,1723351844732,-1180.73,0.00020821,3]
[334619248,1723351844742,-500.0,0.00020821,3]
[334619249,1723351844752,-500.0,0.00020821,3]
[334619250,1723351844761,-7857.32,0.00020821,3]
[334619251,1723351844771,-500.0,0.00020821,3]
[334619252,1723351844780,-1672.62,0.00020821,3]
[334619253,1723351844789,-957.17,0.00020821,3]
[334619254,1723351844799,-500.0,0.00020821,3]
[334619255,1723351844809,-500.0,0.00020821,3]
[334619256,1723351844819,-500.0,0.00020821,3]
[334619257,1723351844957,-500.0,0.00020821,3]
[334619258,1723351844966,-500.0,0.00020821,3]
[334619259,1723351844978,-2300.82,0.00020821,3]
[334619260,1723351844987,-1102.2,0.00020821,3]
[334619261,1723351844997,-500.0,0.00020821,3]
[334619262,1723351845006,-285.0,0.00021,2]
[334619263,1723351845016,-906.44622373,0.00021,2]
[334619264,1723351845026,-3000.0,0.00021,2]
[334619265,1723351845035,-3000.0,0.0002101,2]
[334619266,1723351845044,-494.6780177,0.00021011,2]
[334619267,1723351845053,-1457.40927297,0.0002102,2]
[334619269,1723351846071,-694.71379029,0.00016309,2]
[334619270,1723351846081,-432.01518519,0.00018978,2]
[334619271,1723351846090,-500.0,0.00018978,2]
[334619272,1723351846100,-500.0,0.00018978,2]
[334619273,1723351846110,-500.0,0.00018978,2]
[334619274,1723351846119,-234.72431745,0.00018978,2]
[334619275,1723351846130,-413.13724732,0.00018978,2]
[334619276,1723351846139,-724.4979989,0.00018978,2]
[334619277,1723351846148,-500.0,0.00018978,2]
[334619278,1723351846157,-500.0,0.00018978,2]
[334619279,1723351846167,-500.0,0.00018978,2]
[334619280,1723351846176,-500.0,0.00018978,2]
[334619281,1723351846186,-500.0,0.00018978,2]
[334619282,1723351846195,-500.0,0.00018978,2]
[334619283,1723351846205,-724.4979989,0.00018978,2]
[334619284,1723351846215,-500.0,0.00018978,2]
[334619285,1723351846226,-500.0,0.00018978,2]
[334619286,1723351846235,-724.4979989,0.00018978,2]
[334619287,1723351846244,-500.0,0.00018978,2]
[334619288,1723351846256,-500.0,0.00018978,2]
[334619289,1723351846267,-500.0,0.00018978,2]
[334619290,1723351846277,-500.0,0.00018978,2]
[334619291,1723351846288,-500.0,0.00018978,2]
[334619292,1723351846298,-500.0,0.00018978,2]
[334619293,1723351846307,-500.0,0.00018978,2]
[334619294,1723351846317,-724.4979989,0.00018978,2]
[334619295,1723351846326,-500.0,0.00018978,2]
[334619296,1723351846335,-500.0,0.00018978,2]
[334619297,1723351846346,-500.0,0.00018978,2]
[334619298,1723351846357,-500.0,0.00018978,2]
[334619299,1723351846366,-500.0,0.00018978,2]
[334619300,1723351846377,-500.0,0.00018978,2]
[334619301,1723351846387,-500.0,0.00018978,2]
[334619302,1723351846397,-500.0,0.00018978,2]
[334619303,1723351846407,-724.4979989,0.00018978,2]
[334619304,1723351846416,-500.0,0.00018978,2]
[334619305,1723351846427,-500.0,0.00018978,2]
[334619306,1723351846440,-500.0,0.00018978,2]
[334619307,1723351846451,-500.0,0.00018978,2]
[334619308,1723351846461,-724.4979989,0.00018978,2]
[334619309,1723351846471,-486.91999653,0.00018978,2]
[334619310,1723351846483,-500.0,0.00018978,2]
[334619311,1723351846492,-477.6651164,0.00018978,2]
[334619312,1723351846502,-500.0,0.00018978,2]
[334619313,1723351846512,-500.0,0.00018978,2]
[334619314,1723351846521,-500.0,0.00018978,2]
[334619315,1723351846531,-500.0,0.00018978,2]
[334619316,1723351846540,-500.0,0.00018978,2]
[334619317,1723351846549,-500.0,0.00018978,2]
[334619318,1723351846559,-500.0,0.00018978,2]
[334619319,1723351846568,-724.4979989,0.00018978,2]
[334619320,1723351846577,-500.0,0.00018978,2]
[334619321,1723351846586,-500.0,0.00018978,2]
[334619322,1723351846595,-500.0,0.00018978,2]
[334619323,1723351846604,-230.08008168,0.00018978,2]
[334619324,1723352000349,164.695178,0.00014247,2]
[334619330,1723352467790,167.5225,0.00014247,2]
[334619331,1723352530245,154.76784823,9.999e-05,2]
[334619332,1723352585793,256.14353814,0.0001212,2]
[334619333,1723352593552,2164.45800918,0.0001212,2]
[334619334,1723352633834,220.14926539,0.0001212,2]
[334619335,1723352643559,2163.23446996,0.00014691,2]
[334619336,1723352663019,897.78522887,0.000161,4]
[334619337,1723352755239,205.36496574,9.999e-05,2]
[334619339,1723352804743,221.7673724,0.0001212,2]
[334619341,1723352838144,-300.0,0.00015547,2]
[334619342,1723352838166,-266.24438992,0.00015547,2]
[334619343,1723352861987,808.66218785,0.00014691,2]
[334619344,1723352871227,471.24155498,9.999e-05,2]
[334619345,1723352878574,154.79103211,0.00014691,2]
[334619346,1723352906536,1500.0,0.00014691,2]
[334619347,1723352920231,471.24155498,0.00014691,2]
[334619355,1723353032358,-155.15826156,0.00015746,2]
[334619356,1723353032368,-3000.0,0.00015972,2]
[334619357,1723353032378,-300.0,0.00015987,2]
[334619358,1723353032390,-300.0,0.00015987,2]
[334619359,1723353032399,-1214.09763896,0.00015988,2]
[334619360,1723353032412,-258.18004786,0.00015988,2]
[334619370,1723353032634,-5012.15720808,0.00015988,2]
[334619371,1723353032813,-2916.066193,0.00015988,2]
[334619379,1723353038742,-15499.4989121,0.00015988,2]
[334619380,1723353038756,-576.626939,0.00016073,2]
[334619381,1723353038769,-250.0,0.00016162,2]
[334619382,1723353038781,-250.0,0.00016206,2]
[334619383,1723353038797,-250.0,0.00016251,2]
[334619384,1723353038809,-250.0,0.00016295,2]
[334619385,1723353038821,-250.0,0.00016339,2]
[334619386,1723353038833,-250.0,0.00016384,2]
[334619387,1723353038846,-633.49874008,0.00016384,2]
[334619388,1723353038857,-250.0,0.00016428,2]
[334619389,1723353038870,-250.0,0.00016472,2]
[334619390,1723353038882,-250.0,0.00016517,2]
[334619391,1723353038896,-250.0,0.00016561,2]
[334619392,1723353038908,-250.0,0.00016605,2]
[334619393,1723353038921,-250.0,0.0001665,2]
[334619394,1723353038933,-250.0,0.00016694,2]
[334619395,1723353038945,-250.0,0.00016738,2]
[334619396,1723353038958,-250.0,0.00016783,2]
[334619397,1723353038970,-250.0,0.00016827,2]
[334619398,1723353038984,-250.0,0.00016871,2]
[334619399,1723353038997,-250.0,0.00016916,2]
[334619400,1723353039008,-250.0,0.0001696,2]
[334619401,1723353039019,-250.0,0.00017004,2]
[334619402,1723353039031,-1500.0,0.00017403,2]
[334619403,1723353039045,-420.0,0.00017479,2]
[334619404,1723353039058,-420.0,0.00017586,2]
[334619405,1723353039071,-419.82420017,0.000177,2]
[334619406,1723353039083,-419.82420015,0.000177,2]
[334619407,1723353039096,-419.82420015,0.000177,2]
[334619408,1723353039109,-973.3264182,0.00017807,2]
[334619409,1723353039122,-2112.43199913,0.00018,2]
[334619410,1723353039135,-419.01195132,0.00018849,2]
[334619411,1723353039145,-349.416479,0.00018904,2]
[334619412,1723353039156,-419.01195129,0.00018926,2]
[334619413,1723353039166,-371.16,0.00018937,3]
[334619414,1723353039177,-331.87999962,0.00018946,2]
[334619415,1723353039189,-500.0,0.00018946,2]
[334619416,1723353039202,-500.0,0.00018946,2]
[334619417,1723353039215,-500.0,0.00018946,2]
[334619418,1723353039226,-500.0,0.00018946,2]
[334619419,1723353039237,-500.0,0.00018946,2]
[334619420,1723353039249,-500.0,0.00018946,2]
[334619421,1723353039260,-500.0,0.00018946,2]
[334619422,1723353039271,-500.0,0.00018946,2]
[334619423,1723353039282,-500.0,0.00018946,2]
[334619424,1723353039292,-248.143943,0.00018946,2]
[334619425,1723353039303,-536.02607522,0.00018946,2]
[334619426,1723353039313,-500.0,0.00018946,2]
[334619427,1723353039324,-270.22390946,0.00018946,2]
[334619428,1723353039337,-293.20913885,0.00018946,2]
[334619429,1723353039348,-425.41515656,0.00018946,2]
[334619430,1723353039359,-250.93125227,0.00018946,2]
[334619431,1723353039370,-500.0,0.00018946,2]
[334619432,1723353039381,-500.0,0.00018946,2]
[334619433,1723353039392,-500.0,0.00018946,2]
[334619434,1723353039403,-500.0,0.00018946,2]
[334619435,1723353039414,-500.0,0.00018946,2]
[334619436,1723353039425,-500.0,0.00018946,2]
[334619437,1723353039436,-500.0,0.00018946,2]
[334619438,1723353039447,-500.0,0.00018946,2]
[334619439,1723353039459,-500.0,0.00018946,2]
[334619440,1723353039469,-500.0,0.00018946,2]
[334619441,1723353039481,-500.0,0.00018946,2]
[334619442,1723353039493,-500.0,0.00018946,2]
[334619443,1723353039503,-500.0,0.00018946,2]
[334619444,1723353039514,-500.0,0.00018946,2]
[334619445,1723353039525,-500.0,0.00018946,2]
[334619446,1723353039538,-500.0,0.00018946,2]
[334619447,1723353039553,-500.0,0.00018946,2]
[334619448,1723353039564,-500.0,0.00018946,2]
[334619449,1723353039576,-500.0,0.00018946,2]
[334619450,1723353039590,-500.0,0.00018946,2]
[334619451,1723353039603,-500.0,0.00018946,2]
[334619452,1723353039615,-500.0,0.00018946,2]
[334619453,1723353039627,-500.0,0.00018946,2]
[334619454,1723353039639,-500.0,0.00018946,2]
[334619455,1723353039653,-500.0,0.00018946,2]
[334619456,1723353039666,-500.0,0.00018946,2]
[334619457,1723353039678,-500.0,0.00018946,2]
[334619458,1723353039691,-500.0,0.00018946,2]
[334619459,1723353039703,-500.0,0.00018946,2]
[334619460,1723353039715,-500.0,0.00018946,2]
[334619461,1723353039726,-500.0,0.00018946,2]